[Event "21st Maccabiah GM 2022"]
[Site "?"]
[Date "2022.07.17"]
[Round "4.3"]
[White "Postny, Evgeny"]
[Black "Smirin, Ilia"]
[Result "1/2-1/2"]
[ECO "E73"]
[WhiteElo "2564"]
[BlackElo "2601"]
[Annotator "ChessBase"]
[PlyCount "75"]
[EventDate "2022.07.13"]
[EventType "tourn"]
[EventCountry "ISR"]
[SourceTitle "playchess.com"]
[Source "ChessBase"]
[SourceQuality "1"]
[TimeControl "40/5400+30:1800+30"]

1. d4 {[%emt 0:00:03]} Nf6 {[%emt 0:01:10]} 2. c4 {[%emt 0:00:16]} g6 {[%emt 0:00:15]} 3. Nc3 {[%emt 0:00:05]} Bg7 {[%emt 0:00:04]} 4. e4 {[%emt 0:00:04]} d6 {[%emt 0:00:06]} 5. Be2 {[%emt 0:00:14]} O-O {[%emt 0:00:23]} 6. Be3 {[%emt 0:00:06]} Nc6 {[%emt 0:00:22]} 7. Nf3 {[%emt 0:03:50]} Ng4 {[%emt 0:01:00]} 8. Bg5 {[%emt 0:01:17]} h6 {[%emt 0:01:53]} 9. Bh4 {[%emt 0:00:06]} g5 {[%emt 0:01:20]} 10. Bg3 {[%emt 0:00:10]} e5 {[%emt 0:00:30]} 11. d5 {[%emt 0:29:49]} Nd4 {[%emt 0:00:15]} 12. Nxd4 {[%emt 0:02:43]} exd4 {[%emt 0:00:12]} 13. Nb5 {[%emt 0:00:05]} Nf6 {[%emt 0:02:31]} 14. f3 {[%emt 0:05:26]} Nh5 {[%emt 0:03:50]} 15. Bf2 {[%emt 0:00:07]} d3 {[%emt 0:09:39]} 16. Bxd3 {[%emt 0:00:30]} Bxb2 {[%emt 0:00:06]} 17. Rb1 {[%emt 0:00:12]} Be5 {[%emt 0:00:04]} 18. g3 {[%emt 0:09:05]} Bg7 {[%emt 0:07:50]} 19. Nd4 {[%emt 0:07:30]} c5 {[%emt 0:10:58]} 20. dxc6 {[%emt 0:04:45]} bxc6 {[%emt 0:00:05]} 21. Nxc6 {[%emt 0:02:37]} Bc3+ {[%emt 0:00:11]} 22. Kf1 {[%emt 0:06:48]} Bh3+ {[%emt 0:01:48]} 23. Kg1 {[%emt 0:00:35]} Qd7 {[%emt 0:10:08]} 24. Nd4 {[%emt 0:02:20]} Ng7 {[%emt 0:00:19]} 25. Qc2 {[%emt 0:10:26]} Ba5 {[%emt 0:07:18]} 26. Bf1 {[%emt 0:05:56]} Bb6 {[%emt 0:02:23]} 27. g4 {[%emt 0:00:33]} Bxf1 {[%emt 0:06:25]} 28. Kxf1 {[%emt 0:00:05]} Rac8 {[%emt 0:00:03]} 29. Kg2 {[%emt 0:02:44]} Ne6 {[%emt 0:05:15]} 30. Nxe6 {[%emt 0:00:37]} Qxe6 {[%emt 0:00:08]} 31. Bxb6 {[%emt 0:03:21]} Rxc4 {[%emt 0:00:51]} 32. Qd3 {[%emt 0:02:06]} axb6 33. Rxb6 {[%emt 0:00:09]} Ra8 {[%emt 0:02:17]} 34. Rxd6 {[%emt 0:01:14]} Qc8 {[%emt 0:01:50]} 35. Kg3 {[%emt 0:00:58]} Qc7 {[%emt 0:02:21]} 36. e5 {[%emt 0:00:24]} Rxa2 {[%emt 0:00:09]} 37. Rd8+ {[%emt 0:00:54]} Kg7 {[%emt 0:00:08]} 38. Qd6 {[%emt 0:00:13]} 1/2-1/2

[Event "21st Maccabiah GM 2022"]
[Site "?"]
[Date "2022.07.17"]
[Round "4.4"]
[White "Ginsburg, Gennadi"]
[Black "Tzidkiya, Yeshaayahu"]
[Result "0-1"]
[ECO "B33"]
[WhiteElo "2400"]
[BlackElo "2419"]
[Annotator "ChessBase"]
[PlyCount "71"]
[EventDate "2022.07.13"]
[EventType "tourn"]
[EventCountry "ISR"]
[SourceTitle "playchess.com"]
[Source "ChessBase"]
[SourceQuality "1"]
[TimeControl "40/5400+30:1800+30"]

1. e4 c5 2. Nf3 Nc6 3. d4 cxd4 4. Nxd4 Nf6 5. Nc3 e5 6. Ndb5 d6 7. Bg5 a6 8. Na3 b5 9. Nd5 Be7 10. Bxf6 Bxf6 11. c4 b4 12. Nc2 Rb8 13. h4 O-O 14. b3 Be6 15. g3 Bxd5 16. cxd5 Na5 17. Bxa6 Qb6 18. Qe2 g6 19. Bd3 Rfc8 20. Rd1 Rc3 21. Ne3 Nb7 22. Kf1 Nc5 23. Kg2 Bg7 24. h5 Qd8 25. Bb1 Qg5 26. Rh4 Bh6 27. Ng4 Bg7 28. Ne3 Bh6 29. Rdh1 Rxe3 30. Qxe3 Qxe3 31. fxe3 Bxe3 32. Kf3 Bg5 33. R4h2 f5 34. exf5 gxf5 35. h6 e4+ 36. Ke2 0-1

[Event "21st Maccabiah GM 2022"]
[Site "?"]
[Date "2022.07.17"]
[Round "4.5"]
[White "Yarmonov, Igor"]
[Black "Parkhov, Yair"]
[Result "*"]
[ECO "D08"]
[WhiteElo "2372"]
[BlackElo "2468"]
[Annotator "ChessBase"]
[PlyCount "116"]
[EventDate "2022.07.13"]
[EventType "tourn"]
[EventCountry "ISR"]
[SourceTitle "playchess.com"]
[Source "ChessBase"]
[SourceQuality "1"]
[TimeControl "40/5400+30:1800+30"]

1. d4 {[%emt 0:00:03]} d5 {[%emt 0:00:03]} 2. c4 {[%emt 0:00:06]} e5 {[%emt 0:00:21]} 3. dxe5 {[%emt 0:00:07]} Ne7 {[%emt 0:00:16]} 4. cxd5 {[%emt 0:01:29]} Qxd5 {[%emt 0:00:09]} 5. Qxd5 {[%emt 0:00:16]} Nxd5 {[%emt 0:00:04]} 6. a3 {[%emt 0:00:18]} Nc6 {[%emt 0:00:46]} 7. e4 {[%emt 0:01:42]} Nb6 {[%emt 0:00:31]} 8. Nf3 {[%emt 0:07:54]} Bc5 {[%emt 0:03:23]} 9. Bb5 {[%emt 0:08:01]} Bd7 {[%emt 0:00:15]} 10. Nc3 {[%emt 0:00:29]} O-O-O {[%emt 0:11:18]} 11. O-O {[%emt 0:03:22]} Nd4 {[%emt 0:08:41]} 12. Nxd4 {[%emt 0:14:33]} Bxd4 {[%emt 0:00:33]} 13. Bxd7+ {[%emt 0:12:14]} Nxd7 {[%emt 0:07:53]} 14. Nb5 {[%emt 0:05:25]} Bb6 {[%emt 0:08:53]} 15. Bg5 {[%emt 0:05:32]} Rde8 {[%emt 0:00:37]} 16. Rac1 {[%emt 0:00:15]} Kb8 {[%emt 0:01:49]} 17. Be3 {[%emt 0:03:09]} Rxe5 {[%emt 0:06:03]} 18. Bxb6 {[%emt 0:00:47]} Nxb6 {[%emt 0:00:08]} 19. Nc3 {[%emt 0:05:30]} Rd8 {[%emt 0:05:18]} 20. Rfd1 {[%emt 0:00:51]} Kc8 {[%emt 0:04:09]} 21. f4 {[%emt 0:03:06]} Rxd1+ {[%emt 0:01:03]} 22. Rxd1 {[%emt 0:00:16]} Re6 {[%emt 0:01:43]} 23. b3 {[%emt 0:01:17]} Nd7 {[%emt 0:06:41]} 24. b4 {[%emt 0:01:17]} Nb6 {[%emt 0:00:27]} 25. Kf2 {[%emt 0:01:06]} Rc6 {[%emt 0:03:24]} 26. Rd3 {[%emt 0:00:12]} a6 {[%emt 0:05:48]} 27. Kf3 {[%emt 0:00:55]} Rd6 {[%emt 0:01:47]} 28. Rxd6 {[%emt 0:03:31]} cxd6 {[%emt 0:00:04]} 29. Ke2 {[%emt 0:00:17]} Nc4 {[%emt 0:02:55]} 30. a4 {[%emt 0:00:10]} a5 {[%emt 0:00:55]} 31. bxa5 {[%emt 0:21:50]} Nxa5 {[%emt 0:00:05]} 32. Kd3 {[%emt 0:00:00]} Kd7 {[%emt 0:00:43]} 33. Kd4 {[%emt 0:00:00]} Kc6 {[%emt 0:00:18]} 34. Nd5 {[%emt 0:00:00]} Nb3+ {[%emt 0:01:50]} 35. Kc4 {[%emt 0:00:00]} Nc5 {[%emt 0:00:09]} 36. Nc3 {[%emt 0:00:00]} Nxe4 37. Nxe4 {[%emt 0:00:00]} d5+ {[%emt 0:00:41]} 38. Kd4 {[%emt 0:00:00]} dxe4 39. Kxe4 {[%emt 0:00:00]} Kc5 {[%emt 0:00:39]} 40. f5 {[%emt 0:00:00]} Kb4 {[%emt 0:00:36]} 41. Ke5 {[%emt 0:18:37]} Kxa4 {[%emt 0:30:10]} 42. Kd6 {[%emt 0:00:06]} b5 {[%emt 0:00:08]} 43. Ke7 {[%emt 0:00:01]} f6 {[%emt 0:02:38]} 44. Kf7 {[%emt 0:00:29]} b4 {[%emt 0:00:22]} 45. Kxg7 {[%emt 0:00:02]} b3 {[%emt 0:00:05]} 46. Kxh7 {[%emt 0:00:08]} b2 {[%emt 0:00:11]} 47. Kg6 {[%emt 0:00:51]} b1=Q {[%emt 0:00:06]} 48. Kxf6 {[%emt 0:00:35]} Qb2+ {[%emt 0:00:02]} 49. Ke6 {[%emt 0:00:37]} Qe2+ {[%emt 0:00:08]} 50. Kf7 {[%emt 0:00:19]} Qc4+ {[%emt 0:00:12]} 51. Kf6 {[%emt 0:00:45]} Kb5 {[%emt 0:00:25]} 52. h3 {[%emt 0:00:50]} Kc6 {[%emt 0:00:30]} 53. g4 {[%emt 0:00:30]} Qc3+ {[%emt 0:00:30]} 54. Ke6 {[%emt 0:00:30]} Qe3+ {[%emt 0:00:30]} 55. Kf6 {[%emt 0:00:30]} Qh6+ {[%emt 0:00:30]} 56. Ke7 {[%emt 0:00:30]} Qh7+ {[%emt 0:00:30]} 57. Kf6 {[%emt 0:00:30]} Kd7 {[%emt 0:00:30]} 58. g5 {[%emt 0:00:30]} Kd8 {[%emt 0:00:30]} *

[Event "21st Maccabiah GM 2022"]
[Site "?"]
[Date "2022.07.17"]
[Round "4.6"]
[White "Yarmonov, Igor"]
[Black "Parkhov, Yair"]
[Result "1/2-1/2"]
[ECO "D94"]
[WhiteElo "2372"]
[BlackElo "2468"]
[Annotator "ChessBase"]
[PlyCount "127"]
[EventDate "2022.07.13"]
[EventType "tourn"]
[EventCountry "ISR"]
[SourceTitle "playchess.com"]
[Source "ChessBase"]
[SourceQuality "1"]
[TimeControl "40/5400+30:1800+30"]

1. d4 {[%emt 0:00:10]} Nf6 {[%emt 0:02:58]} 2. c4 {[%emt 0:00:30]} g6 {[%emt 0:00:30]} 3. Nc3 {[%emt 0:00:30]} d5 {[%emt 0:00:30]} 4. Nf3 {[%emt 0:00:30]} Bg7 {[%emt 0:00:30]} 5. e3 {[%emt 0:00:30]} O-O {[%emt 0:00:30]} 6. Be2 {[%emt 0:00:30]} dxc4 {[%emt 0:00:30]} 7. Bxc4 {[%emt 0:00:30]} c5 {[%emt 0:00:30]} 8. O-O {[%emt 0:00:30]} Nbd7 {[%emt 0:00:30]} 9. h3 {[%emt 0:00:30]} e6 {[%emt 0:00:30]} 10. Qe2 {[%emt 0:00:30]} a6 {[%emt 0:00:30]} 11. a4 {[%emt 0:00:30]} b6 {[%emt 0:00:30]} 12. Rd1 {[%emt 0:00:30]} Qc7 {[%emt 0:00:30]} 13. d5 {[%emt 0:00:30]} exd5 {[%emt 0:00:30]} 14. Bxd5 {[%emt 0:00:30]} Bb7 {[%emt 0:00:30]} 15. Bxb7 {[%emt 0:00:30]} Qxb7 {[%emt 0:00:30]} 16. Bd2 {[%emt 0:00:30]} Rfe8 {[%emt 0:00:30]} 17. Be1 {[%emt 0:00:30]} Rab8 {[%emt 0:00:30]} 18. b3 {[%emt 0:00:30]} Re6 {[%emt 0:00:30]} 19. Ra2 {[%emt 0:00:30]} h6 {[%emt 0:00:30]} 20. Nd2 {[%emt 0:00:30]} b5 {[%emt 0:00:30]} 21. axb5 {[%emt 0:00:30]} axb5 {[%emt 0:00:30]} 22. Ra5 {[%emt 0:00:30]} Rb6 {[%emt 0:00:30]} 23. f3 {[%emt 0:00:30]} Ne5 {[%emt 0:00:30]} 24. Nde4 {[%emt 0:00:30]} Nxe4 {[%emt 0:00:30]} 25. Nxe4 {[%emt 0:00:30]} c4 {[%emt 0:00:30]} 26. bxc4 {[%emt 0:00:30]} Nxc4 {[%emt 0:00:30]} 27. Ra2 {[%emt 0:00:30]} Qe7 {[%emt 0:00:30]} 28. Rb1 {[%emt 0:00:30]} f5 {[%emt 0:00:30]} 29. Bb4 {[%emt 0:00:30]} Qf7 {[%emt 0:00:30]} 30. Nc5 {[%emt 0:00:30]} Nxe3 {[%emt 0:00:30]} 31. Rd2 {[%emt 0:00:30]} Nd5 {[%emt 0:00:30]} 32. Ba5 {[%emt 0:00:30]} Re8 {[%emt 0:00:30]} 33. Qd3 {[%emt 0:00:30]} Nf4 {[%emt 0:00:30]} 34. Qb3 {[%emt 0:00:30]} Qxb3 {[%emt 0:00:30]} 35. Rxb3 {[%emt 0:00:30]} Rc6 {[%emt 0:00:30]} 36. Nd3 {[%emt 0:00:30]} Ne2+ {[%emt 0:00:30]} 37. Kf1 {[%emt 0:00:30]} Nd4 {[%emt 0:00:30]} 38. Rb1 {[%emt 0:00:30]} g5 {[%emt 0:00:30]} 39. Bb4 {[%emt 0:00:30]} f4 {[%emt 0:00:30]} 40. Bc5 {[%emt 0:00:30]} Nf5 {[%emt 0:00:30]} 41. Bf2 {[%emt 0:30:30]} Rd8 {[%emt 0:30:30]} 42. Rxb5 {[%emt 0:00:30]} Ne3+ {[%emt 0:00:30]} 43. Ke2 {[%emt 0:00:30]} Nxg2 {[%emt 0:00:30]} 44. Nc5 {[%emt 0:00:30]} Re8+ {[%emt 0:00:30]} 45. Ne4 {[%emt 0:00:30]} Re7 {[%emt 0:00:30]} 46. Rbd5 {[%emt 0:00:30]} Rc1 {[%emt 0:00:30]} 47. Rd1 {[%emt 0:00:30]} Rc2+ {[%emt 0:00:30]} 48. R5d2 {[%emt 0:00:30]} Rxd2+ {[%emt 0:00:30]} 49. Rxd2 {[%emt 0:00:30]} Rb7 {[%emt 0:00:30]} 50. Rd3 {[%emt 0:00:30]} Rb1 {[%emt 0:00:30]} 51. Rd1 {[%emt 0:00:30]} Rb2+ {[%emt 0:00:30]} 52. Rd2 {[%emt 0:00:30]} Rb4 {[%emt 0:00:30]} 53. Rd3 {[%emt 0:00:30]} Be5 {[%emt 0:00:30]} 54. Kf1 {[%emt 0:00:30]} Ne3+ {[%emt 0:00:30]} 55. Bxe3 {[%emt 0:00:30]} Rb1+ {[%emt 0:00:30]} 56. Kg2 {[%emt 0:00:30]} fxe3 {[%emt 0:00:30]} 57. Rxe3 {[%emt 0:00:30]} Bf4 {[%emt 0:00:30]} 58. Re2 {[%emt 0:00:30]} Kg7 {[%emt 0:00:30]} 59. Nf2 {[%emt 0:00:30]} h5 {[%emt 0:00:30]} 60. Nd3 {[%emt 0:00:30]} Kf6 {[%emt 0:00:30]} 61. Nxf4 {[%emt 0:00:30]} gxf4 {[%emt 0:00:30]} 62. h4 {[%emt 0:00:30]} Rb7 {[%emt 0:00:30]} 63. Ra2 {[%emt 0:00:30]} Re7 {[%emt 0:00:30]} 64. Kf2 {[%emt 0:00:30]} 1/2-1/2

[Event "21st Maccabiah GM 2022"]
[Site "?"]
[Date "2022.07.18"]
[Round "5.1"]
[White "Parkhov, Yair"]
[Black "Dvoirys, Semen I."]
[Result "1/2-1/2"]
[ECO "D85"]
[WhiteElo "2468"]
[BlackElo "2439"]
[Annotator "TA"]
[PlyCount "83"]
[EventDate "2022.07.13"]
[EventType "tourn"]
[EventCountry "ISR"]
[SourceTitle "playchess.com"]
[Source "ChessBase"]
[SourceQuality "1"]
[TimeControl "40/5400+30:1800+30"]

{[%evp 23,83,4,50,16,26,0,4,0,31,0,0,0,28,20,38,0,0,-8,18,20,9,12,49,-12,18,-44,1,1,0,0,47,22,38,36,35,44,41,39,32,0,0,0,0,0,0,0,0,-34,40,40,40,40,40,41,40,40,41,13,17,0,0,0]} 1. d4 {[%emt 0:00:04]} Nf6 {[%emt 0:00:07]} 2. c4 {[%emt 0:00:19]} g6 {[%emt 0:00:41]} 3. Nc3 {[%emt 0:00:11]} d5 {[%emt 0:00:06]} 4. cxd5 {[%emt 0:00:05]} Nxd5 {[%emt 0:00:03]} 5. e4 {[%emt 0:00:07]} Nxc3 {[%emt 0:00:04]} 6. bxc3 {[%emt 0:00:04]} Bg7 {[%emt 0:00:03]} 7. Nf3 {[%emt 0:00:07]} c5 {[%emt 0:00:06]} 8. Rb1 {[%emt 0:00:03]} O-O {[%emt 0:00:08]} 9. Be2 {[%emt 0:00:05]} cxd4 {[%emt 0:00:27]} 10. cxd4 {[%emt 0:02:04]} Qa5+ {[%emt 0:00:26]} 11. Bd2 {[%emt 0:00:07]} Qxa2 {[%emt 0:00:05]} 12. O-O {[%emt 0:00:07]} Nd7 {[%emt 0:03:05]} (12... b6 $11) 13. Bd3 {[%emt 0:01:07][%mdl 1024] White has compensation. D85: Exchange Grünfeld: Unusual White 7th moves and lines with 7 Nf3.} Nb6 {[%emt 0:06:23]} 14. Ra1 {[%emt 0:02:00]} Qe6 {[%emt 0:00:29]} 15. Bb4 {[%emt 0:10:24]} Qd7 {[%emt 0:01:34] [#]} 16. Ra5 $146 {[%emt 0:12:09]} (16. Bc5 $5 {[%cal Rc5b6]} Qd8 17. Qb3 $11) ({Predecessor:} 16. Qe2 Qd8 17. h3 Bd7 18. Ra3 Re8 19. Ba5 e6 20. Rfa1 Bc6 21. Qb2 Rc8 22. Ne5 Bxe5 23. dxe5 Qh4 24. Be1 {½-½ (24) Akshat,K (2307)-Sivanandan,B (2373) Chennai 2008}) 16... Qd8 {[%emt 0:01:33]} 17. Qa1 {[%emt 0:08:49]} Be6 {[%emt 0:20:04]} 18. Qa3 {[%emt 0:10:28]} Nc8 {[%emt 0:02:22]} 19. d5 {[%emt 0:06:18]} (19. Rd1 $14 {feels stronger.}) 19... Bg4 $11 {[%emt 0:03:37]} 20. Nd2 {[%emt 0:00:50]} Bd4 {[%emt 0:19:50]} 21. h3 {[%emt 0:05:02]} Bd7 {[%emt 0:02:19]} 22. Qb3 {[%emt 0:01:58]} Qc7 {[%emt 0:07:52]} 23. Kh1 {[%emt 0:05:52]} (23. Nf3 $14 Bb6 24. Ra2) 23... Qf4 {[%emt 0:04:41]} (23... b5 $5) 24. Qd1 {[%emt 0:08:23]} ({Better is} 24. Nf3 $11 Bg7 25. Bd2) 24... Re8 {[%emt 0:02:27]} (24... Bxf2 $2 25. Qe2 $18) ({Don't take} 24... Be5 25. Nf3 $14) (24... Bb6 $5 {[%cal Rb6a5]} 25. Ra1 Nd6 $15) 25. Nf3 {[%emt 0:01:11]} Bg7 {[%emt 0:00:57]} 26. Qe2 {[%emt 0:03:51]} e5 {[%emt 0:05:37]} (26... a6 $11 {was preferrable.}) 27. Rc5 {[%emt 0:04:39] Rc7 is the strong threat.} Qf6 {[%emt 0:03:45]} 28. Rc7 {[%emt 0:03:18][%csl LRb7,LRd7]} Qb6 {[%emt 0:01:44][%csl LRb4,LRc7]} 29. Rxd7 {[%emt 0:00:41]} Qxb4 {[%emt 0:00:04]} 30. Rb1 {[%emt 0:00:42][%mdl 64] [#] Deflection} Qa3 {[%emt 0:00:04]} 31. Rbxb7 {[%emt 0:09:01]} Nd6 {[%emt 0:00:05]} 32. Rbc7 {[%emt 0:00:06] Against Qc1+} Rec8 {[%emt 0:00:17]} 33. Kh2 {[%emt 0:01:34] aiming for Rc6.} Rxc7 {[%emt 0:01:02]} 34. Rxc7 {[%emt 0:00:07]} a5 {[%emt 0:00:25]} 35. Nd2 {[%emt 0:01:21]} Rc8 {[%emt 0:01:55]} (35... Qb2 $15) 36. Nc4 $14 {[%emt 0:01:41]} Qb4 {[%emt 0:00:13]} 37. Rc6 {[%emt 0:00:59]} Rxc6 {[%emt 0:01:05]} 38. dxc6 {[%emt 0:00:02] Black must now prevent c7.} Qc5 {[%emt 0:00:33]} 39. Nxd6 {[%emt 0:00:41]} Qxd6 {[%emt 0:00:05]} 40. Bb5 {[%emt 0:01:52]} (40. Qc2 $5 {[%cal Rc6c7]} Qc7 41. Bc4 $16) 40... Bf6 {[%emt 0:00:33]} 41. Qf3 {[%emt 0:05:01][%cal Oc6c7] [#] Hoping for c7!} Kg7 {[%emt 0:01:27]} 42. Qe3 {[%emt 0:04:25] Weighted Error Value: White=0.17 (very precise) /Black=0.16 (very precise)} 1/2-1/2

[Event "21st Maccabiah GM 2022"]
[Site "?"]
[Date "2022.07.18"]
[Round "5.2"]
[White "Tzidkiya, Yeshaayahu"]
[Black "Yarmonov, Igor"]
[Result "1-0"]
[ECO "B12"]
[WhiteElo "2419"]
[BlackElo "2372"]
[Annotator "TA"]
[PlyCount "57"]
[EventDate "2022.07.13"]
[EventType "tourn"]
[EventCountry "ISR"]
[SourceTitle "playchess.com"]
[Source "ChessBase"]
[SourceQuality "1"]
[TimeControl "40/5400+30:1800+30"]

{[%evp 9,57,12,25,16,37,30,31,34,34,25,53,29,64,57,97,38,77,73,73,73,74,74,42,44,41,13,25,21,97,99,95,93,105,100,93,98,83,63,155,156,156,156,156,156,157,157,681,671,718,0]} 1. e4 {[%emt 0:00:08]} c6 {[%emt 0:00:18]} 2. d4 {[%emt 0:00:05]} d5 {[%emt 0:00:03]} 3. e5 {[%emt 0:00:16]} Bf5 {[%emt 0:00:16]} 4. c4 {[%emt 0:00:17]} e6 {[%emt 0:00:16]} 5. Nc3 {[%emt 0:00:09]} Bb4 {[%emt 0:00:32]} 6. cxd5 {[%emt 0:00:20] B12: Caro-Kann: Advance Variation.} Qxd5 {[%emt 0:01:39]} 7. Nge2 {[%emt 0:01:23]} Ne7 {[%emt 0:01:37] [#]} 8. a3 $146 {[%emt 0:02:55] White is slightly better.} ({Predecessor:} 8. Bg5 Qa5 9. a3 Bxc3+ 10. bxc3 c5 11. Qd2 Nbc6 12. Bxe7 Nxe7 13. c4 Qxd2+ 14. Kxd2 {0-1 (39) Srinath,R (2356)-Bevia Martinez,L (2169) Benidorm 2021}) 8... Bxc3+ {[%emt 0:00:05]} 9. Nxc3 {[%emt 0:00:26]} Qd7 {[%emt 0:00:35][%cal Oc6c5]} 10. h4 {[%emt 0:01:30] [#] Strongly threatening g4.} h5 {[%emt 0:02:20][%cal Oc6c5] Inhibits g4.} 11. Bg5 {[%emt 0:01:30]} Nd5 {[%emt 0:02:29]} 12. Bd3 {[%emt 0:05:59]} (12. Be2 $16) 12... Na6 {[%emt 0:06:18]} 13. Ne4 {[%emt 0:04:08]} Bxe4 {[%emt 0:00:07]} 14. Bxe4 {[%emt 0:00:02]} Ne7 {[%emt 0:03:20]} 15. O-O {[%emt 0:05:55]} Nc7 {[%emt 0:03:55]} 16. Qb3 {[%emt 0:11:00]} Ncd5 {[%emt 0:00:23]} 17. Rac1 {[%emt 0:03:54]} f6 {[%emt 0:04:22]} 18. Bd2 {[%emt 0:00:09]} Nf5 {[%emt 0:03:10]} (18... O-O-O $11 {remains equal.}) 19. Bxf5 $16 {[%emt 0:00:52]} exf5 {[%emt 0:00:04] [#]} 20. e6 $1 {[%emt 0:00:33][%cal Be5e6,Be6e7][%mdl 32]} Qe7 {[%emt 0:00:42]} 21. Bb4 $36 {[%emt 0:01:26][%mdl 2048] Keeping Black busy.} Nxb4 {[%emt 0:20:44]} 22. axb4 {[%emt 0:00:04][%cal Ba3b4,Bb4b5][%mdl 32] aiming for b5.} O-O {[%emt 0:00:53]} 23. b5 {[%emt 0:00:22]} Qd6 {[%emt 0:01:03]} (23... Rad8 $14) 24. Rfe1 {[%emt 0:11:36]} Rae8 {[%emt 0:00:08]} 25. e7+ {[%emt 0:10:55]} Rf7 {[%emt 0:00:05]} 26. Re6 {[%emt 0:00:02]} Qd7 {[%emt 0:03:15]} 27. Rce1 {[%emt 0:04:10] 0x0.0005eb883b15dp-1022s more active pieces. The black rooks are badly placed.} Qxd4 $2 {[%emt 0:07:12]} (27... a6 $16 28. bxc6 bxc6) 28. Rd1 $18 {[%emt 0:00:10]} Qb6 {[%emt 0:00:49]} 29. Rde1 $2 {[%emt 0:34:44][%mdl 32768] Weighted Error Value: White=0.06 (flawless) /Black=0.50. Loss on time!?} ({Better is} 29. Rd7 $18) 1-0

[Event "21st Maccabiah GM 2022"]
[Site "?"]
[Date "2022.07.18"]
[Round "5.2"]
[White "Ginsburg, Gennadi"]
[Black "Dvoirys, Semen I."]
[Result "*"]
[WhiteElo "2400"]
[BlackElo "2439"]
[Annotator "TA"]
[PlyCount "26"]
[EventDate "2022.07.13"]
[EventType "tourn"]
[EventCountry "ISR"]
[SourceTitle "playchess.com"]
[Source "ChessBase"]
[SourceQuality "1"]
[TimeControl "40/5400+30:1800+30"]

{[%evp 9,13,7,8,3,35,34]} 1. e4 {[%emt 0:00:08]} c6 {[%emt 0:00:18]} 2. d4 {[%emt 0:00:05]} d5 {[%emt 0:00:03]} 3. e5 {[%emt 0:00:16]} Bf5 {[%emt 0:00:16]} 4. c4 {[%emt 0:00:17]} e6 {[%emt 0:00:16]} 5. Nc3 {[%emt 0:00:09]} Bb4 {[%emt 0:00:32]} 6. cxd5 {[%emt 0:00:20] B12: Caro-Kann: Advance Variation.} Qxd5 {[%emt 0:01:39]} 7. Nge2 {[%emt 1:32:45] [#]} {Predecessor:} Qd8 $146 8. a3 Ba5 9. Ng3 Ne7 10. Bc4 Bg6 11. h4 h6 12. h5 Bh7 13. Qg4 Kf8 {1-0 (49) Carlsen,M (2847)-Fedoseev,V (2696) Krasnaya Polyana 2021} *

[Event "21st Maccabiah GM 2022"]
[Site "?"]
[Date "2022.07.18"]
[Round "5.3"]
[White "Smirin, Ilia"]
[Black "Ginsburg, Gennadi"]
[Result "1-0"]
[ECO "C92"]
[WhiteElo "2601"]
[BlackElo "2400"]
[Annotator "TA"]
[PlyCount "77"]
[EventDate "2022.07.13"]
[EventType "tourn"]
[EventCountry "ISR"]
[SourceTitle "playchess.com"]
[Source "ChessBase"]
[SourceQuality "1"]
[TimeControl "40/5400+30:1800+30"]

{[%evp 22,77,49,15,32,30,43,15,61,33,31,-11,85,111,78,83,119,133,155,156,147,147,373,397,415,408,407,387,410,400,375,420,412,374,390,318,423,356,469,469,461,433,444,451,576,445,393,428,541,541,595,548,1222,1016,1018,1005,911,799]} 1. e4 {[%emt 0:01:08]} e5 {[%emt 0:00:40]} 2. Nf3 {[%emt 0:00:11]} Nc6 {[%emt 0:00:23]} 3. Bb5 {[%emt 0:00:16]} a6 {[%emt 0:00:49]} 4. Ba4 {[%emt 0:00:08]} Nf6 {[%emt 0:00:40]} 5. O-O {[%emt 0:00:18]} Be7 {[%emt 0:00:48]} 6. Re1 {[%emt 0:00:36]} b5 {[%emt 0:00:56]} 7. Bb3 {[%emt 0:00:06]} d6 {[%emt 0:00:42]} 8. c3 {[%emt 0:00:09]} O-O {[%emt 0:00:13]} 9. h3 {[%emt 0:00:16]} Nd7 {[%emt 0:01:40]} 10. d4 {[%emt 0:00:15]} Bf6 {[%emt 0:00:43]} 11. a4 {[%emt 0:00:24]} Bb7 {[%emt 0:02:54]} 12. Na3 {[%emt 0:02:59] 12.d5 is the modern continuation.} (12. d5 $5 {[%cal Rd5c6]} Ne7 13. Be3 $14) 12... Ne7 {[%emt 0:07:04] C92: Closed Ruy Lopez: 9...Be6, Karpov and Flohr-Zaitsev Variations.} 13. Bd2 $5 {[%emt 0:08:29][%mdl 4] A promising side line.} c6 {[%emt 0:09:31] [#]} 14. Ba2 $146 {[%emt 0:05:40]} ({Predecessor:} 14. dxe5 dxe5 15. Be3 Qc7 16. Qe2 Ng6 17. Red1 Rad8 18. axb5 cxb5 19. Bd5 Nb6 20. Bxb6 Qxb6 {1-0 (36) Kargin,A (2440)-De Coninck,R (2123) Paleochora 2013}) 14... Nb6 {[%emt 0:06:10]} (14... Ng6 $11) 15. a5 {[%emt 0:01:29]} Nd7 {[%emt 0:02:43]} 16. b4 {[%emt 0:00:10]} c5 {[%emt 0:18:04]} (16... exd4 $11 17. cxd4 Ng6) 17. dxc5 $16 {[%emt 0:03:21]} dxc5 {[%emt 0:01:36]} 18. c4 {[%emt 0:00:17] White is more active.} Nc6 {[%emt 0:09:08]} 19. cxb5 axb5 {[%emt 0:02:05]} 20. Nxb5 {[%emt 0:05:04][%cal Of3g5] Ng5! is the strong threat.} Nxb4 {[%emt 0:03:21] [#]} 21. Nd6 $1 {[%emt 0:08:53]} Ba6 $2 {[%emt 0:13:12] Black cannot hold the game after this.} (21... Nxa2 $16 {was called for.} 22. Nxb7 Qc7) 22. Bxb4 $18 {[%emt 0:01:10]} cxb4 {[%emt 0:00:25]} 23. Bxf7+ {[%emt 0:09:22]} Kh8 {[%emt 0:08:24]} (23... Rxf7 $2 24. Qd5 Ra7 25. Qxf7+ $18) 24. Bd5 {[%emt 0:00:48]} Rb8 {[%emt 0:00:19]} 25. Nf7+ {[%emt 0:01:52]} Rxf7 {[%emt 0:00:04]} 26. Bxf7 {[%emt 0:00:04]} Qe7 {[%emt 0:00:43]} 27. Bd5 {[%emt 0:04:34]} Nc5 {[%emt 0:00:24]} 28. Re3 {[%emt 0:00:34]} g6 {[%emt 0:01:56]} 29. Qc2 {[%emt 0:03:55]} Bg7 {[%emt 0:01:06]} 30. Rc1 {[%emt 0:02:13]} Rc8 {[%emt 0:04:20]} 31. Qb2 {[%emt 0:00:17]} Rb8 {[%emt 0:01:04]} 32. Bc4 {[%emt 0:01:56]} Bh6 {[%emt 0:02:24]} 33. Nxe5 {[%emt 0:01:09][%cal Re5g6] [#]} Bg7 {[%emt 0:00:45]} 34. f4 {[%emt 0:00:10]} Bxc4 {White is clearly winning.} 35. Rxc4 {[%emt 0:00:11]} Ne6 {[%emt 0:01:32]} 36. Qc1 {[%emt 0:04:09] aiming for Nc6.} Bh6 {[%emt 0:01:03]} 37. Rc8+ Rxc8 {[%emt 0:00:05]} 38. Qxc8+ {[%emt 0:01:21]} Kg7 {[%emt 0:00:11]} 39. Qd7 {[%emt 0:00:12] Weighted Error Value: White=0.18 (very precise) /Black=0.44} 1-0